bitfinex-derivatives/quotes_ETHF0:USTF0_20251031
["timestamp","ask_amount","ask_price","bid_price","bid_amount"]
[1761939443304,0.56440121,3889.7,3889.6,0.46303]
[1761939443704,0.56440121,3889.7,3889.6,9.824]
[1761939443907,2.70150121,3889.7,3889.6,9.824]
[1761939444209,5.90930121,3889.7,3889.6,9.821]
[1761939444906,5.90930121,3889.7,3889.3,0.46307]
[1761939444907,2.1371,3889.4,3889.2,0.46308]
[1761939445098,2.1371,3889.4,3889.3,9.819]
[1761939445712,2.70184582,3889.4,3889.3,9.807]
[1761939446003,2.70184582,3889.4,3888.8,3.2078]
[1761939446208,1.3362,3889.2,3888.9,9.806]
[1761939446412,0.56474582,3889.1,3888.9,9.806]
[1761939447012,0.56474582,3889.1,3888.4,3.2078]
[1761939447402,2.1371,3888.4,3888.3,0.00285098]
[1761939447605,2.1371,3888.4,3888.3,9.80585098]
[1761939447910,5.3449,3888.4,3888.3,0.00285098]
[1761939448112,5.90970809,3888.4,3888.3,9.80585098]
[1761939448305,5.90970809,3888.4,3887.5,3.2078]
[1761939448501,0.56480809,3888.3,3887.6,9.803]
[1761939448707,3.2078,3888.4,3887.7,0.46325]
[1761939448903,0.56460742,3888.3,3887.7,0.46325]
[1761939449103,0.56460742,3888.2,3887.8,9.13325]
[1761939449305,0.56460742,3888.1,3887.9,0.46324]
[1761939449509,3.2078,3888.4,3887.8,9.13604296]
[1761939449706,3.2078,3888.4,3887.8,0.00279296]
[1761939449707,0.56430999,3888.3,3887.8,0.00279296]
[1761939449906,1.3362,3888.6,3887.8,0.00279296]
[1761939449907,2.1371,3887.9,3887.8,0.00279296]
[1761939450108,2.1371,3887.9,3887.5,9.803]
[1761939450109,2.1371,3887.6,3887.5,9.803]
[1761939450711,2.1371,3887.6,3887.3,0.46331]
[1761939450912,2.1371,3887.5,3887.4,9.803]
[1761939451110,2.1371,3887.5,3886.8,1.29659754]
[1761939451310,3.4733,3887.4,3886.9,0.46335]
[1761939451508,2.1371,3887.1,3887.0,8.489]
[1761939451707,1.3362,3887.4,3887.1,0.46333]
[1761939452008,2.1371,3887.1,3887.0,8.489]
[1761939452312,2.1371,3886.9,3886.8,0.00309754]
[1761939452509,1.3362,3886.8,3886.3,9.804]
[1761939452705,1.3362,3886.8,3886.4,0.46341]
[1761939452901,1.3362,3886.8,3886.5,0.4634]
[1761939453107,3.2078,3887.6,3887.1,2.70083]
[1761939453309,3.2078,3887.6,3887.1,10.26733]
[1761939453507,2.1371,3887.4,3887.3,0.46331]
[1761939454118,3.2078,3887.6,3887.4,0.46329]
[1761939454412,3.2078,3887.6,3885.8,3.2078]
[1761939454413,2.1371,3885.9,3885.8,3.2078]
[1761939454712,2.1371,3885.9,3884.4,3.2078]
[1761939454713,2.1371,3884.8,3884.4,3.2078]
[1761939454915,2.1371,3884.8,3884.2,0.42007559]
[1761939455107,2.1371,3884.8,3884.3,9.857]
[1761939455512,0.00306325,3884.8,3884.7,2.26515773]
[1761939455916,0.00306325,3884.8,3884.7,5.93657773]
[1761939456414,0.00306325,3884.8,3884.7,5.47295773]
[1761939457612,0.00306325,3884.8,3884.7,15.33095773]
[1761939457913,0.00306325,3884.8,3884.7,9.87665773]
[1761939458118,0.00306325,3884.8,3884.7,2.26515773]
[1761939459819,0.00306325,3884.8,3884.7,12.11015773]
[1761939460019,0.00306325,3884.8,3884.7,2.26515773]
[1761939460421,0.00306325,3884.8,3884.7,12.10715773]
[1761939461224,0.00306325,3884.8,3884.7,15.31495773]
[1761939461623,0.00306325,3884.8,3884.7,5.47295773]
[1761939462222,0.00306325,3884.8,3884.7,15.30695773]
[1761939462419,4.2589,3886.8,3885.7,3.7027]
[1761939462624,3.2078,3888.9,3887.6,2.302]
[1761939462825,0.46326,3887.8,3887.5,3.2078]
[1761939463117,0.46326,3887.8,3887.1,1.4007]
[1761939463118,2.3472,3887.5,3887.1,9.89]
[1761939463322,2.35040804,3887.5,3887.3,3.2078]
[1761939463523,0.00320804,3887.5,3887.2,9.889]
[1761939463721,2.3472,3887.0,3886.3,13.0948]
[1761939463925,2.3472,3887.0,3886.3,3.2078]
[1761939464121,2.3472,3887.0,3886.3,13.1068]
[1761939464716,2.3472,3887.0,3886.3,13.10984471]
[1761939465624,2.3472,3887.0,3886.3,13.57326471]
[1761939466021,2.3472,3887.0,3886.3,13.10984471]
[1761939466330,0.46337,3886.8,3886.3,13.10984471]
[1761939466523,0.46335,3887.0,3886.3,13.10984471]
[1761939466718,4.5994,3887.2,3886.4,0.46341]
[1761939467722,4.5994,3887.2,3886.3,13.10984471]
[1761939468231,4.5994,3887.2,3886.3,3.21084471]
[1761939468432,0.4634,3886.5,3886.3,3.21084471]
[1761939468648,3.7388,3886.4,3886.3,3.21084471]
[1761939470535,2.3472,3886.4,3886.3,3.21084471]
[1761939472722,2.3472,3886.4,3886.3,0.00304471]
[1761939473033,3.7388,3886.4,3886.3,0.00304471]
[1761939475724,4.20222,3886.4,3886.3,0.00304471]
[1761939477230,4.28271879,3886.4,3886.3,0.00304471]
[1761939477535,4.20222,3886.4,3886.3,0.00304471]
[1761939478136,4.28271877,3886.4,3886.3,0.00304471]
[1761939478935,3.2078,3886.8,3886.3,0.00304471]
[1761939478936,3.2078,3886.8,3886.3,9.81704471]
[1761939479136,3.2078,3886.8,3886.4,0.46342]
[1761939479530,3.2078,3886.8,3886.3,10.28047471]
[1761939479938,3.2078,3886.8,3886.3,0.46647471]
[1761939480137,1.78511891,3888.2,3887.4,0.4633]
[1761939480338,0.9803,3888.6,3887.4,15.3238]
[1761939480837,1.3916,3889.2,3887.5,1.15821]
[1761939481033,1.3916,3888.6,3888.5,3.2078]
[1761939481943,0.00297102,3888.6,3888.5,3.2078]
[1761939482132,0.00297102,3888.6,3888.5,5.5098]
[1761939483234,0.00297102,3888.6,3888.5,5.97297]
[1761939483440,0.00297102,3888.6,3888.5,3.2078]
[1761939484836,0.00297102,3888.6,3888.5,5.5098]
[1761939485841,0.00297102,3888.6,3888.5,15.3218]
[1761939488737,4.20492102,3888.6,3888.5,3.2078]
[1761939489041,4.20492102,3888.6,3886.8,0.7004]
[1761939489042,3.7388,3888.0,3887.9,3.047]
[1761939489252,3.7388,3888.0,3886.8,1.85882]
[1761939489253,3.7388,3888.0,3887.8,3.2078]
[1761939489543,3.7388,3888.0,3887.8,9.4038]
[1761939490139,4.20203,3888.0,3887.8,9.4038]
[1761939490338,2.3472,3887.9,3887.8,3.2078]
[1761939490642,2.1637,3887.5,3887.4,3.2078]
[1761939490845,2.1637,3887.5,3887.4,8.7978]
[1761939491045,2.1637,3887.5,3887.4,3.2078]
[1761939491248,1.85483,3888.0,3887.4,3.67109]
[1761939491445,1.85483,3888.0,3887.4,3.2078]
[1761939491446,1.3916,3888.0,3887.4,3.2078]
[1761939491643,1.3916,3888.0,3887.5,0.46328]
[1761939491845,1.3916,3888.0,3887.6,0.46327]
[1761939492039,1.3916,3888.0,3887.4,3.2078]
[1761939492345,2.1637,3887.5,3887.4,3.2078]
[1761939492541,2.1637,3887.1,3887.0,3.2078]
[1761939492741,2.1637,3887.1,3886.6,13.47919]
[1761939492950,2.1637,3887.1,3887.0,3.2078]
[1761939493150,1.3515,3887.4,3887.0,3.2078]
[1761939493350,1.3916,3888.0,3887.0,3.2078]
[1761939493544,1.3916,3888.0,3887.4,3.2078]
[1761939494040,1.3916,3888.0,3887.6,0.46327]
[1761939494546,1.3916,3888.0,3887.7,0.46326]
[1761939494948,1.3916,3888.0,3887.4,3.2078]
[1761939494949,1.3916,3888.0,3887.5,0.46327]
[1761939495152,1.3916,3888.0,3887.4,0.46329]
[1761939495450,1.3916,3888.0,3887.0,3.2078]
[1761939495451,1.3515,3887.4,3887.0,3.2078]
[1761939496449,1.3515,3887.4,3887.0,3.67114]
[1761939496853,1.3515,3887.4,3887.0,3.2078]
[1761939497052,1.3515,3887.4,3887.1,0.46333]
[1761939497348,1.3515,3887.4,3887.0,3.2078]
[1761939497853,1.3515,3887.4,3887.0,3.67114]
[1761939498051,1.3515,3887.4,3887.1,0.46333]
[1761939498657,1.3515,3887.4,3887.0,3.67115]
[1761939498855,1.3515,3887.4,3887.0,3.2078]
[1761939499151,1.3515,3887.4,3887.0,3.67114]
[1761939499456,1.3515,3887.4,3887.0,3.2078]
[1761939500347,1.3515,3887.4,3887.0,3.67114]
[1761939500754,1.3515,3887.4,3887.3,0.46331]
[1761939500961,1.3916,3888.0,3887.4,0.4633]
[1761939501255,1.3916,3888.0,3887.4,3.6711]
[1761939501958,1.3916,3888.0,3887.0,3.2078]
[1761939501959,1.2965,3887.4,3887.0,3.2078]
[1761939502757,1.2965,3887.4,3887.0,3.67114]
[1761939504058,1.2965,3887.4,3887.0,3.2078]
[1761939504354,1.2965,3887.4,3887.3,0.46331]
[1761939504659,1.3916,3888.0,3887.5,0.46328]
[1761939504860,1.3916,3888.0,3887.5,0.46329]
[1761939505051,1.3916,3888.0,3887.6,0.46327]
[1761939505753,1.3916,3888.0,3887.4,3.2078]
[1761939506162,3.21077102,3888.6,3888.1,2.72401]
[1761939506349,1.29947102,3888.6,3888.3,3.67099]
[1761939506657,2.166,3888.4,3888.3,9.804]
[1761939507658,2.166,3888.4,3888.2,0.4632]
[1761939507859,2.166,3888.4,3888.1,10.26721]
[1761939508053,2.166,3888.4,3888.2,0.4632]
[1761939508649,2.166,3888.4,3888.3,3.2078]
[1761939508856,1.29947102,3888.6,3888.3,3.67099]
[1761939509458,1.29947102,3888.6,3888.3,3.2078]
[1761939510858,2.166,3888.4,3888.3,3.2078]
[1761939512662,2.166,3888.4,3887.8,9.801]
[1761939513359,2.166,3888.4,3888.1,3.2078]
[1761939514458,2.166,3888.4,3888.1,3.67101]
[1761939514962,2.166,3888.4,3888.1,3.2078]
[1761939517363,2.166,3888.4,3888.0,9.797]
[1761939517862,2.166,3888.4,3887.8,0.46324]
[1761939518063,2.166,3888.4,3887.4,0.7004]
[1761939518064,2.166,3888.4,3888.1,3.2078]
[1761939520959,1.29947102,3888.6,3888.1,3.2078]
[1761939520960,2.166,3888.2,3888.1,3.2078]
[1761939521262,2.0524,3887.8,3887.7,3.2078]
[1761939521966,1.3009,3888.0,3887.8,0.46325]
[1761939522162,3.2078,3888.5,3888.2,0.4632]
[1761939522361,1.29947102,3888.6,3888.3,2.2419]
[1761939522867,1.29947102,3888.6,3888.1,3.2078]
[1761939523767,1.29947102,3888.6,3888.1,3.67101]
[1761939523966,0.00297102,3888.6,3888.5,2.2419]
[1761939524168,1.3009,3889.5,3888.5,14.98299]
[1761939524460,1.3009,3889.5,3889.1,3.67089]
[1761939525060,1.3039315,3889.5,3889.1,3.672754]
[1761939525458,1.3039315,3889.5,3889.2,0.46308]
[1761939525662,1.3039315,3889.5,3889.1,3.672754]
[1761939526269,1.3039315,3889.5,3889.3,0.46307]
[1761939526769,1.3039315,3889.5,3889.4,2.2419]
[1761939527067,0.0030315,3889.5,3889.4,2.2419]
[1761939527374,1.3039315,3889.5,3889.4,2.2419]
[1761939527574,1.3039315,3889.5,3889.1,3.209664]
[1761939528171,1.3039315,3889.5,3889.4,2.2419]
[1761939530178,0.0030315,3889.5,3889.4,2.2419]
[1761939530677,0.0030315,3889.5,3889.4,2.70496]
[1761939531775,0.0030315,3889.5,3889.4,2.2419]
[1761939531975,0.0030315,3889.5,3889.4,2.70496]
[1761939535781,0.0030315,3889.5,3889.4,12.48796]
[1761939536079,3.3563315,3889.5,3889.1,12.991664]
[1761939536278,3.3563315,3889.5,3889.1,13.454754]
[1761939536479,3.3563315,3889.5,3889.1,12.991664]
[1761939536680,3.3563315,3889.5,3889.1,3.672754]
[1761939536875,2.0524,3889.2,3889.1,3.209664]
[1761939540681,1.3039315,3889.5,3889.1,5.451564]
[1761939540883,1.3039315,3889.5,3889.4,2.70496]
[1761939541079,0.0030315,3889.5,3889.4,2.70496]
[1761939542385,0.0030315,3889.5,3889.4,2.2419]
[1761939542687,3.3563315,3889.5,3889.1,3.209664]
[1761939542887,2.0524,3889.2,3889.1,3.209664]
[1761939543084,2.0524,3889.2,3888.1,1.15802]
[1761939543085,2.0524,3888.7,3887.4,4.10631693]
[1761939543388,3.2078,3888.4,3887.4,0.46329]
[1761939543685,3.2078,3888.4,3887.0,13.5936]
[1761939543686,4.5087,3888.0,3887.0,3.8186]
[1761939543892,4.5087,3888.0,3887.0,0.6108]
[1761939544187,3.2078,3887.6,3887.0,0.4656316]
[1761939544783,4.5087,3888.0,3887.2,0.46332]
[1761939544979,0.08046648,3887.9,3887.0,3.2100916]
[1761939545184,4.5087,3888.0,3887.0,3.2100916]
[1761939545385,0.08046627,3887.9,3887.0,0.0022916]
[1761939545690,4.5087,3888.0,3887.3,0.4633]
[1761939545889,0.08046611,3887.9,3887.3,0.4633]
[1761939546090,4.5087,3888.0,3887.3,0.4633]
[1761939546292,4.5087,3888.0,3887.6,0.46327]
[1761939546493,3.2078,3888.4,3887.6,0.46327]
[1761939546786,3.2078,3888.4,3887.4,3.2078]
[1761939546787,3.2078,3888.4,3887.9,0.46323]
[1761939547386,3.2078,3888.4,3888.0,0.46322]
[1761939547586,3.2078,3888.4,3888.0,0.9502]
[1761939547793,3.2078,3888.4,3888.3,2.2419]
[1761939549185,3.2078,3888.4,3888.2,0.4632]
[1761939549186,3.2078,3888.4,3887.5,9.773]
[1761939549485,3.2078,3888.4,3888.0,0.46322]
[1761939550096,3.2078,3888.4,3888.1,0.46321]
[1761939550293,3.2078,3888.4,3887.6,1.15819]
[1761939550990,3.2078,3888.4,3888.0,0.46322]
[1761939551291,3.2078,3888.4,3887.6,1.15819]
[1761939551494,3.2078,3888.4,3888.2,0.4632]
[1761939551890,3.2078,3888.4,3887.8,0.46324]
[1761939552094,3.2078,3888.9,3888.0,0.46322]
[1761939552392,3.2078,3888.9,3888.0,1.2205]
[1761939552587,3.2078,3888.9,3888.2,0.46319]
[1761939552896,3.2078,3888.9,3888.0,1.2205]
[1761939552897,3.2078,3888.9,3888.1,0.46321]
[1761939553296,3.2078,3888.9,3888.4,0.46318]
[1761939553688,3.2078,3888.9,3888.2,0.46319]
[1761939553884,3.2078,3888.9,3888.1,0.46321]
[1761939554096,3.2078,3888.9,3888.0,1.2205]
[1761939554298,3.2078,3889.3,3888.8,2.0058]
[1761939554492,2.0255,3888.9,3888.2,3.2078]
[1761939554685,2.0255,3888.9,3888.3,9.768]
[1761939554993,2.0255,3888.9,3888.4,0.46318]
[1761939557007,5.2333,3888.9,3888.2,3.2078]
[1761939558196,5.2333,3888.9,3887.8,3.67104]
[1761939558197,2.0255,3888.3,3887.8,3.67104]
[1761939558499,2.0255,3888.3,3887.8,3.2078]
[1761939559695,4.403,3888.5,3887.4,1.2216]
[1761939559696,1.9578,3887.9,3887.4,4.4294]
[1761939559887,1.9578,3887.9,3887.4,1.2216]
[1761939560292,1.9578,3887.9,3887.4,1.6849]
[1761939560493,1.9578,3887.9,3887.5,0.46328]
[1761939562895,1.9578,3887.9,3887.3,9.761]
[1761939563096,1.9578,3887.9,3887.4,3.2078]
[1761939563291,1.9578,3887.9,3887.5,0.46328]
[1761939563497,1.9578,3887.9,3887.6,0.46327]
[1761939563704,3.2078,3888.1,3888.0,1.8464]
[1761939563904,3.2078,3888.1,3888.0,2.9953]
[1761939564296,3.2078,3888.5,3888.0,1.1489]
[1761939564606,3.2078,3888.5,3888.4,1.8464]
[1761939565808,3.2078,3889.0,3888.5,0.6676]
[1761939566008,3.2078,3889.0,3888.9,1.8464]
[1761939566707,3.2078,3889.0,3888.9,2.30952]
[1761939567102,3.2078,3889.0,3888.9,1.8464]
[1761939567805,3.2078,3889.0,3888.9,2.30952]
[1761939568104,3.2078,3889.0,3888.9,1.8464]
[1761939568905,3.2078,3889.0,3888.9,2.30952]
[1761939569306,3.2078,3889.4,3888.9,2.30952]
[1761939570107,3.2078,3889.4,3888.9,1.8464]
[1761939571592,0.08043471,3889.3,3888.9,1.8464]
[1761939571791,3.2078,3889.4,3888.9,2.30952]
[1761939572207,3.2078,3889.4,3888.9,1.8464]
[1761939572404,1.9578,3888.3,3888.2,0.4632]
[1761939572907,1.9578,3888.3,3888.0,3.67102]
[1761939573903,1.1952,3888.5,3888.0,3.2078]
[1761939573904,1.9578,3888.1,3888.0,3.2078]
[1761939576308,1.9578,3887.7,3887.2,3.2078]
[1761939577511,1.9578,3887.7,3887.3,0.46331]
[1761939577904,1.9578,3887.7,3887.2,3.2078]
[1761939578105,1.9578,3887.7,3887.2,3.67112]
[1761939578304,1.9578,3887.7,3887.2,3.2078]
[1761939578509,1.1952,3888.0,3887.6,1.8464]
[1761939580114,1.9578,3887.7,3887.2,3.2078]
[1761939580805,5.1656,3887.7,3886.8,3.2078]
[1761939580999,3.2078,3887.2,3886.4,3.2078]
[1761939581207,3.2078,3887.2,3887.0,0.0022916]
[1761939581208,1.7173,3887.1,3887.0,0.0022916]
[1761939583708,1.063,3887.5,3887.0,0.4656316]
[1761939583908,1.063,3887.5,3887.0,0.0022916]
[1761939584712,1.063,3887.5,3887.0,0.4656316]
[1761939585224,1.7173,3887.1,3887.0,0.0022916]
[1761939587111,1.063,3887.0,3886.0,1.1489]
[1761939587314,1.063,3887.0,3886.3,0.46343]
[1761939588214,1.063,3887.0,3886.3,0.46526557]
[1761939588627,1.063,3887.0,3886.5,0.7784]
[1761939588913,1.063,3887.0,3886.5,3.9862]
[1761939589219,3.2078,3887.3,3886.7,0.46338]
[1761939589412,3.2078,3887.3,3886.5,0.7784]
[1761939589614,3.2078,3887.3,3886.7,0.46338]
[1761939590318,3.2078,3887.3,3886.5,0.7784]
[1761939590519,3.2078,3887.3,3886.6,0.46339]
[1761939591216,1.7173,3886.4,3886.3,0.00184557]
[1761939591413,1.71917663,3886.4,3886.3,0.46527557]
[1761939592422,1.71917663,3886.4,3886.3,0.00184557]
[1761939592719,0.00187663,3886.4,3886.3,0.46527557]
[1761939593417,0.00187663,3886.4,3886.3,0.00184557]
[1761939593812,0.00187663,3886.4,3886.3,0.46527557]
[1761939594015,0.00187663,3886.4,3886.3,2.20637557]
[1761939594215,0.00187663,3886.4,3886.3,1.74294557]
[1761939594418,1.71917663,3886.4,3886.3,0.00184557]
[1761939601223,2.18259663,3886.4,3886.3,0.00184557]
[1761939601426,1.71917663,3886.4,3886.3,0.00184557]
[1761939601923,2.18259663,3886.4,3886.3,0.00184557]
[1761939602226,2.18079,3885.8,3885.7,3.2078]
[1761939602524,0.4635,3885.7,3885.3,12.9308]
[1761939602717,0.4635,3885.7,3884.7,10.34574234]
[1761939602718,1.7173,3885.0,3884.9,3.2078]
[1761939602922,1.7173,3884.8,3884.7,0.02574234]
[1761939603119,1.7173,3884.8,3884.7,0.0290177]
[1761939603824,1.7173,3884.8,3884.7,0.4926377]
[1761939604026,1.063,3885.0,3884.8,0.46361]
[1761939604329,1.063,3885.0,3884.7,0.4926377]
[1761939604918,1.7173,3884.9,3884.8,0.46361]
[1761939605120,1.7173,3884.9,3884.7,0.0290177]
[1761939605719,1.7173,3884.9,3884.7,0.4926377]
[1761939606225,1.7173,3884.9,3884.7,0.0290177]
[1761939606226,1.7173,3884.8,3884.7,0.0290177]
[1761939606728,1.063,3885.0,3884.7,2.2337377]
[1761939606931,1.063,3885.5,3884.9,0.46359]
[1761939607223,0.46355,3885.4,3884.8,0.46361]
[1761939607524,0.46355,3885.3,3884.8,0.46361]
[1761939607731,1.7173,3884.8,3884.7,0.0290177]
[1761939607926,1.7173,3884.8,3884.7,1.7701177]
[1761939608127,1.063,3885.0,3884.7,1.7701177]
[1761939608623,1.7173,3884.8,3884.7,0.0290177]
[1761939612332,2.18091,3884.8,3884.7,0.0290177]
[1761939614424,1.7173,3884.8,3884.7,0.0290177]
[1761939614630,2.18091,3884.8,3884.7,0.0290177]
[1761939614933,5.38871,3884.8,3884.7,0.0290177]
[1761939615826,4.9251,3884.8,3884.7,0.0290177]
[1761939616031,5.38871,3884.8,3884.7,1.7078177]
[1761939616231,5.38871,3884.8,3884.7,0.0290177]
[1761939616631,4.9251,3884.8,3884.7,0.0290177]
[1761939617032,5.38871,3884.8,3884.7,0.0290177]
[1761939617227,4.9251,3884.8,3884.7,0.0290177]
[1761939617732,3.2078,3885.3,3885.2,2.14236]
[1761939618033,0.46348,3885.9,3885.0,1.0132]
[1761939618233,1.063,3886.0,3885.5,0.46352]
[1761939618537,1.52647,3886.0,3885.5,0.46352]
[1761939619338,1.52647,3886.0,3885.5,0.988]
[1761939619339,1.063,3886.0,3885.5,0.988]
[1761939619531,1.063,3886.0,3885.3,3.2078]
[1761939619532,1.52647,3886.0,3885.3,3.2078]
[1761939619731,1.063,3886.0,3885.3,3.2078]
[1761939619934,0.46343,3886.3,3885.7,0.46349]
[1761939620134,0.46343,3886.3,3885.5,0.988]
[1761939620834,0.46345,3886.2,3885.6,0.46351]
[1761939621339,1.6152,3885.4,3885.3,3.2078]
[1761939621534,1.6152,3885.4,3885.0,0.46358]
[1761939621738,1.6152,3885.4,3885.1,0.46357]
[1761939621932,1.6152,3885.4,3884.9,3.67139]
[1761939622138,1.6152,3885.4,3884.9,3.2078]
[1761939622339,0.46355,3885.3,3884.9,3.2078]
[1761939622640,1.6152,3885.0,3884.9,3.2078]
[1761939623741,1.6152,3884.8,3884.7,0.0290177]
[1761939625142,1.6152,3884.8,3884.7,0.4926377]
[1761939625342,1.6152,3884.8,3884.7,0.0290177]
[1761939625741,1.6152,3884.8,3884.7,2.0413377]
[1761939626042,0.9321,3885.0,3884.8,0.46361]
[1761939626337,0.9321,3885.0,3884.7,0.0290177]
[1761939626539,0.9321,3885.0,3884.7,0.4926377]
[1761939626935,1.6152,3884.8,3884.7,0.0290177]
[1761939627338,1.6152,3884.8,3884.7,2.0413377]
[1761939627538,0.9321,3885.5,3884.9,1.5487]
[1761939627840,0.46355,3885.3,3884.9,1.5487]
[1761939628345,0.46346,3886.1,3885.6,1.5487]
[1761939628645,1.39557,3886.0,3885.6,1.5487]
[1761939628843,0.9321,3886.0,3885.6,2.01221]
[1761939629347,0.9321,3886.0,3885.6,1.5487]
[1761939629646,1.6152,3885.7,3885.6,1.5487]
[1761939631051,3.2078,3886.2,3885.6,1.5487]
[1761939631257,3.20450372,3887.8,3887.2,1.5487]
[1761939631258,1.78511891,3887.4,3887.2,1.5487]
[1761939631455,3.2078,3887.6,3887.2,1.5487]
[1761939631753,1.62578,3887.3,3886.7,3.2078]
[1761939631946,1.6152,3886.8,3886.7,3.2078]
[1761939632146,1.6152,3886.8,3886.2,3.2078]
[1761939632347,0.00253704,3886.8,3886.2,3.2078]
[1761939632547,0.00253704,3886.8,3885.9,0.46347]
[1761939632548,1.6152,3886.3,3885.9,0.46347]
[1761939632854,0.00253704,3886.8,3886.3,0.46342]
[1761939633047,0.46339,3886.7,3886.1,3.2078]
[1761939633249,0.00253704,3886.8,3886.1,3.67125]
[1761939633250,0.46590704,3886.8,3886.1,3.67125]
[1761939633448,0.00253704,3886.8,3886.2,0.46343]
[1761939633653,0.46590704,3886.8,3886.2,0.46343]
[1761939633850,0.46590704,3886.8,3886.1,3.2078]
[1761939634057,0.00253704,3886.8,3886.3,0.46343]
[1761939634457,0.00253704,3886.8,3886.1,3.67125]
[1761939634846,0.00253704,3886.8,3886.3,0.46342]
[1761939635051,0.00253704,3886.8,3886.4,0.46341]
[1761939635253,0.00253704,3886.8,3886.1,3.2078]
[1761939635456,0.00253704,3886.8,3886.6,0.46338]
[1761939635750,0.00253704,3886.8,3886.7,1.5487]
[1761939637859,0.00253704,3886.8,3886.7,11.2297]
[1761939638461,0.00253704,3886.8,3886.7,1.5487]
[1761939638653,0.00253704,3886.8,3886.7,11.2287]
[1761939638958,0.00253704,3886.8,3886.7,11.69208]
[1761939639956,0.00253704,3886.8,3886.5,4.1958]
[1761939639957,0.00253704,3886.8,3886.4,3.2078]
[1761939640256,0.00253704,3886.8,3886.7,2.01208]
[1761939640461,0.00253704,3886.8,3886.7,1.5487]
[1761939640961,0.00253704,3886.8,3886.5,0.7404]
[1761939641156,0.00253704,3886.8,3886.4,3.67121]
[1761939641353,2.4271,3886.5,3886.4,3.2078]
[1761939641556,0.9019,3886.0,3885.6,3.2078]
[1761939642561,0.9019,3886.0,3885.6,3.67131]
[1761939642762,0.9019,3886.0,3885.7,0.4635]
[1761939642963,0.9019,3886.0,3885.6,3.2078]
[1761939643261,4.1097,3886.5,3885.6,4.0544]
[1761939644056,4.1097,3886.5,3885.6,4.51791]
[1761939644357,0.46346,3886.1,3885.6,4.51791]
[1761939644558,0.46348,3885.9,3885.6,3.2078]
[1761939646068,0.46348,3885.9,3885.6,3.67131]
[1761939646264,1.16097704,3886.8,3886.2,1.5557]
[1761939646265,0.00253704,3886.8,3886.2,1.5557]
[1761939646463,1.5252,3886.3,3885.6,12.8768]
[1761939647167,1.5252,3886.3,3886.0,0.46346]
[1761939647570,1.5252,3886.3,3885.8,0.46348]
[1761939647767,1.5252,3886.3,3885.9,0.46348]
[1761939648263,1.5252,3886.3,3885.6,12.8768]
[1761939648264,1.5252,3886.3,3886.0,3.67126]
[1761939648769,1.5252,3886.3,3886.0,3.2078]
[1761939649870,1.5252,3886.1,3886.0,3.2078]
[1761939650463,0.9019,3886.0,3885.5,1.33392]
[1761939652368,0.9019,3886.0,3885.6,0.46351]
[1761939652766,0.9019,3886.0,3885.4,3.67134]
[1761939652974,0.9019,3886.0,3885.5,0.46352]
[1761939653272,0.9019,3886.0,3885.5,1.31012]
[1761939653669,0.9019,3886.0,3885.5,0.8466]
[1761939654066,0.9019,3886.0,3885.5,1.31012]
[1761939654270,0.9019,3886.0,3885.6,0.46351]
[1761939654869,3.2078,3886.4,3885.9,1.5557]
[1761939655070,0.9019,3886.5,3886.0,0.8704]
[1761939655263,1.5252,3886.1,3885.8,3.2078]
[1761939656070,1.5252,3886.1,3885.5,0.8466]
[1761939656263,0.9019,3886.0,3885.5,0.8466]
[1761939656773,0.9019,3886.0,3885.5,1.31012]
[1761939656973,0.9019,3886.0,3885.6,0.46351]
[1761939657172,0.9019,3886.0,3885.4,3.67133]
[1761939658265,1.5252,3884.8,3884.7,0.0290177]
[1761939658467,3.2078,3885.3,3884.7,1.5847177]
[1761939659265,3.2078,3885.3,3885.0,0.8704]
[1761939659477,4.1097,3886.0,3885.2,1.5557]
[1761939659679,0.08050883,3885.9,3885.2,1.5557]
[1761939659876,4.1097,3886.0,3885.2,1.5557]
[1761939659877,0.08050883,3885.8,3885.2,1.5557]
[1761939660177,4.1097,3886.0,3885.2,1.5557]
[1761939660178,4.1097,3886.0,3885.5,0.8704]
[1761939660875,3.2078,3886.4,3885.9,3.2078]
[1761939661077,3.2078,3886.4,3886.1,0.46345]
[1761939662677,0.46339,3886.6,3886.1,0.46345]
[1761939662878,3.21033704,3886.8,3886.2,0.46344]
[1761939663072,4.36877704,3886.8,3885.9,3.2078]
[1761939663268,0.46343,3886.3,3885.9,3.2078]
[1761939663476,0.9019,3886.0,3885.3,3.2078]
[1761939663673,3.2078,3886.4,3885.5,0.8704]
[1761939663874,3.2078,3886.4,3885.6,0.46351]
[1761939664282,3.2078,3886.4,3885.5,0.8704]
[1761939664682,3.2078,3886.4,3885.8,0.46349]
[1761939665072,3.2078,3886.4,3885.9,0.46347]
[1761939665277,3.2078,3886.4,3886.0,0.46346]
[1761939665681,0.00253704,3886.8,3886.7,1.5557]
[1761939666281,0.00253704,3886.8,3886.1,3.2078]
[1761939666484,0.00253704,3886.8,3886.1,3.67125]
[1761939666782,0.00253704,3886.8,3885.7,0.4635]
[1761939666783,1.5252,3886.2,3885.7,0.4635]
[1761939667187,0.9019,3886.5,3886.1,1.5557]
[1761939668277,1.5252,3886.2,3885.6,3.2078]
[1761939668478,0.9019,3886.5,3886.1,2.01915]
[1761939668674,0.9019,3886.5,3886.1,1.5557]
[1761939668883,0.9019,3886.5,3885.7,1.15875]
[1761939669183,0.9019,3886.5,3885.6,3.2078]
[1761939669184,0.00253704,3886.8,3886.7,1.5557]
[1761939669788,0.00253704,3886.8,3886.7,2.01908]
[1761939669991,1.52773704,3886.8,3886.5,0.4634]
[1761939670189,1.52773704,3886.8,3886.0,2.02905]
[1761939670491,0.00253704,3886.8,3886.7,2.01908]